bitfinex/quotes_SOLUSD_20250108
["timestamp","ask_amount","ask_price","bid_price","bid_amount"]
[1736366797504,6.2653,195.17,195.1,15.79172347]
[1736366797689,6.2653,195.17,195.1,39.56860747]
[1736366798208,6.2653,195.17,195.11,15.79172347]
[1736366799302,1.5312,195.21,195.16,20.0]
[1736366800506,1.5312,195.21,195.15,2.64]
[1736366806123,1.5312,195.21,195.11,12.813]
[1736366806294,1.5312,195.21,195.07,103.72242347]
[1736366806608,1.5312,195.21,195.08,2.64]
[1736366806807,6.3307,195.2,195.08,12.8152]
[1736366807009,80.8,195.19,195.08,2.64]
[1736366807993,7.8632,195.17,195.03,15.79172347]
[1736366808209,7.8632,195.17,195.04,2.64]
[1736366808705,7.8632,195.17,195.02,12.8191]
[1736366808706,6.3307,195.13,195.02,12.8191]
[1736366808885,1.5325,195.12,195.03,2.64]
[1736366809995,1.5325,195.12,195.0,15.79172347]
[1736366810196,1.5325,195.12,195.02,2.64]
[1736366810914,1.5325,195.12,195.02,22.64]
[1736366811906,1.5325,195.12,194.99,12.8209]
[1736366812222,1.5325,195.12,195.0,2.64]
[1736366812638,20.0,195.1,194.99,12.8209]
[1736366812929,20.0,195.1,195.0,2.64]
[1736366817119,2.10173602,195.15,194.97,2.64]
[1736366817120,1.6018,195.08,194.97,2.64]
[1736366818200,1.6018,195.08,195.01,10.11345728]
[1736366818910,1.6018,195.08,195.0,10.11345728]
[1736366820514,1.6018,195.08,195.01,10.11345728]
[1736366820715,1.6018,195.08,195.0,10.11345728]
[1736366821643,1.6018,195.08,195.01,10.11345728]
[1736366822018,1.6018,195.08,195.0,10.11345728]
[1736366823511,1.6018,195.08,194.97,2.64]
[1736366825329,80.8,195.07,194.95,12.8233]
[1736366825533,6.5216,195.06,194.98,2.64]
[1736366825725,6.5216,195.06,194.95,22.93675728]
[1736366825921,6.5216,195.06,194.96,2.64]
[1736366826737,6.5216,195.06,194.95,12.8233]
[1736366826930,6.5216,195.06,194.97,2.64]
[1736366828946,20.0,195.04,194.97,2.64]
[1736366829243,1.6625,195.03,194.96,2.64]
[1736366829442,6.4395,195.01,194.96,2.64]
[1736366830317,6.4395,195.01,194.89,12.8274]
[1736366830517,80.8,195.0,194.9,2.64]
[1736366830717,80.8,195.0,194.87,10.11345728]
[1736366830948,82.3329,194.99,194.86,22.94305728]
[1736366831245,26.3736,194.95,194.84,10.11345728]
[1736366831436,26.3736,194.95,194.83,10.11345728]
[1736366831638,80.8,194.94,194.85,2.64]
[1736366831847,80.8,194.94,194.85,22.64]
[1736366832744,80.8,194.93,194.85,2.64]
[1736366833440,1.6463,194.92,194.85,2.64]
[1736366834038,1.6463,194.92,194.85,12.75345728]
[1736366834235,1.6463,194.92,194.85,2.64]
[1736366835141,1.6463,194.92,194.8,59.0135]
[1736366835536,1.6463,194.92,194.79,10.11345728]
[1736366835537,80.8,194.9,194.81,2.64]
[1736366836541,80.8,194.9,194.81,12.75345728]
[1736366836730,80.8,194.9,194.82,2.64]
[1736366837231,80.8,194.9,194.82,12.75345728]
[1736366837858,80.8,194.9,194.82,2.64]
[1736366839047,80.8,194.9,194.82,32.75345728]
[1736366840636,80.8,194.9,194.82,22.64]
[1736366841260,80.8,194.9,194.82,2.64]
[1736366841855,23.776884,194.76,194.58,10.11345728]
[1736366842063,20.0,194.71,194.57,71.81847555]
[1736366842234,20.0,194.67,194.57,71.81847555]
[1736366842438,23.776884,194.7,194.57,71.81847555]
[1736366842639,20.0,194.67,194.57,71.81847555]
[1736366842935,6.5012,194.66,194.57,71.81847555]
[1736366843377,6.5012,194.66,194.55,20.0]
[1736366843575,6.5012,194.66,194.52,10.11345728]
[1736366843947,6.5012,194.66,194.51,10.11345728]
[1736366844364,23.776884,194.65,194.48,1.515]
[1736366844669,23.776884,194.65,194.49,10.11345728]
[1736366844874,23.776884,194.61,194.45,2.64]
[1736366845079,23.776884,194.61,194.5,20.0]
[1736366845437,23.776884,194.65,194.5,20.0]
[1736366845667,23.776884,194.65,194.51,20.0]
[1736366845870,20.0,194.62,194.51,20.0]
[1736366846198,20.0,194.62,194.51,15.88515845]
[1736366846474,20.0,194.62,194.5,15.88515845]
[1736366846645,23.776884,194.62,194.52,20.0]
[1736366847660,23.776884,194.62,194.51,20.0]
[1736366848759,20.0,194.63,194.51,20.0]
[1736366848939,6.5012,194.66,194.52,23.776884]
[1736366849144,6.5012,194.66,194.58,15.88515845]
[1736366849340,6.5012,194.66,194.59,15.88515845]
[1736366849836,6.5012,194.66,194.58,15.88515845]
[1736366850051,6.5012,194.66,194.58,28.73285845]
[1736366850460,6.5012,194.66,194.59,15.88515845]
[1736366850662,6.5012,194.66,194.58,28.73285845]
[1736366853790,6.5012,194.66,194.6,15.88515845]
[1736366854079,80.8,194.72,194.63,15.88515845]
[1736366854577,80.8,194.72,194.61,18.52515845]
[1736366854974,80.8,194.72,194.63,20.0]
[1736366855368,80.8,194.72,194.61,2.64]
[1736366856081,23.776884,194.71,194.61,2.64]
[1736366856884,80.8,194.72,194.62,20.0]
[1736366857071,80.8,194.72,194.64,15.88515845]
[1736366857667,6.405,194.73,194.65,2.64]
[1736366859685,6.405,194.73,194.68,15.88515845]
[1736366859997,6.405,194.73,194.69,15.88515845]
[1736366860160,6.405,194.73,194.68,15.88515845]
[1736366860369,6.405,194.73,194.67,15.88515845]
[1736366860867,6.515,194.78,194.7,15.88515845]
[1736366861174,6.515,194.78,194.71,15.88515845]
[1736366861574,6.515,194.78,194.69,15.88515845]
[1736366862190,6.515,194.78,194.7,15.88515845]
[1736366863181,6.515,194.78,194.71,15.88515845]
[1736366863797,6.515,194.78,194.7,15.88515845]
[1736366863988,6.515,194.78,194.72,15.88515845]
[1736366864164,6.515,194.78,194.74,15.88515845]
[1736366864482,6.515,194.78,194.73,2.64]
[1736366864483,6.515,194.78,194.73,18.52515845]
[1736366864987,6.515,194.78,194.73,2.64]
[1736366866971,6.515,194.78,194.73,18.52515845]
[1736366867469,6.515,194.78,194.73,2.64]
[1736366867869,6.515,194.78,194.73,18.52515845]
[1736366869189,6.3196,194.83,194.77,15.88515845]
[1736366869391,6.3196,194.88,194.82,15.88515845]
[1736366869594,6.3196,194.88,194.83,15.88515845]
[1736366869890,6.3196,194.88,194.82,18.52515845]
[1736366870273,6.3196,194.88,194.82,2.64]
[1736366870692,6.3196,194.88,194.74,243.876884]
[1736366870693,23.776884,194.87,194.76,15.88515845]
[1736366870903,23.776884,194.85,194.77,2.64]
[1736366871793,20.0,194.82,194.77,2.64]
[1736366873500,6.0856,194.8,194.71,2.64]
[1736366874628,6.0856,194.8,194.73,25.35769403]
[1736366875190,6.0856,194.8,194.72,25.35769403]
[1736366875386,6.0856,194.8,194.71,27.99769403]
[1736366875603,6.0856,194.8,194.72,12.8389]
[1736366875793,6.0856,194.8,194.72,38.19659403]
[1736366875990,6.0856,194.8,194.72,12.8389]
[1736366877185,6.0856,194.8,194.71,2.64]
[1736366878313,6.0856,194.8,194.71,27.99769403]
[1736366878806,6.0856,194.8,194.71,2.64]
[1736366879617,6.0856,194.8,194.74,25.35769403]
[1736366879992,6.0856,194.8,194.73,25.35769403]
[1736366880297,6.0856,194.8,194.72,12.8389]
[1736366880994,6.0856,194.8,194.71,2.64]
[1736366881695,6.0856,194.8,194.71,15.4792]
[1736366882611,1.6055,194.79,194.71,2.64]
[1736366883433,80.8,194.76,194.68,12.8413]
[1736366883604,80.8,194.76,194.68,2.64]
[1736366884219,80.8,194.76,194.65,2.64]
[1736366884220,6.4713,194.74,194.65,2.64]
[1736366884517,6.4713,194.74,194.64,2.64]
[1736366884904,87.2713,194.74,194.64,2.64]
[1736366885306,87.2713,194.74,194.66,25.35769403]
[1736366885809,87.2713,194.74,194.67,25.35769403]
[1736366886495,6.4713,194.74,194.67,25.35769403]
[1736366886802,6.4713,194.74,194.68,25.35769403]
[1736366887001,6.4713,194.74,194.69,25.35769403]
[1736366887221,6.504,194.78,194.7,25.35769403]
[1736366887516,6.504,194.78,194.71,25.35769403]
[1736366887720,6.504,194.78,194.72,2.64]
[1736366889523,6.504,194.78,194.66,27.99769403]
[1736366889524,111.080884,194.78,194.66,27.99769403]
[1736366890424,111.080884,194.78,194.67,25.35769403]
[1736366890609,111.080884,194.78,194.66,27.99769403]
[1736366890800,111.080884,194.78,194.66,2.64]
[1736366891001,100.8,194.74,194.66,2.64]
[1736366892627,80.8,194.74,194.67,25.35769403]
[1736366892818,80.8,194.74,194.68,25.35769403]
[1736366893520,80.8,194.74,194.69,25.35769403]
[1736366893825,80.8,194.74,194.68,25.35769403]
[1736366894223,80.8,194.74,194.67,38.19989403]
[1736366894605,80.8,194.77,194.68,2.64]
[1736366895346,23.776884,194.76,194.68,2.64]
[1736366895900,23.776884,194.76,194.64,32.844]
[1736366896128,23.776884,194.76,194.65,2.64]
[1736366896344,80.8,194.71,194.61,15.85878091]
[1736366896515,6.1232,194.7,194.6,12.8464]
[1736366896721,1.5081,194.69,194.6,12.8464]
[1736366896919,1.5081,194.69,194.61,2.64]
[1736366897645,1.5081,194.69,194.61,18.49878091]
[1736366899129,1.5081,194.69,194.61,15.85878091]
[1736366899325,1.5081,194.69,194.62,2.64]
[1736366899711,1.5081,194.69,194.62,18.49878091]
[1736366900030,1.5081,194.69,194.62,2.64]
[1736366900609,82.3081,194.69,194.62,2.64]
[1736366900813,82.3081,194.69,194.57,28.70738091]
[1736366901017,82.3081,194.69,194.58,2.64]
[1736366901908,82.3081,194.69,194.58,18.49878091]
[1736366902228,82.3081,194.69,194.59,15.85878091]
[1736366902409,82.3081,194.69,194.58,18.49878091]
[1736366903132,82.3081,194.69,194.62,15.85878091]
[1736366904415,82.3081,194.69,194.59,12.8475]
[1736366904619,82.3081,194.69,194.59,28.70628091]
[1736366905020,82.3081,194.69,194.6,15.85878091]
[1736366905825,82.3081,194.69,194.55,12.8501]
[1736366906030,23.776884,194.68,194.46,9.53773227]
[1736366906259,23.776884,194.62,194.47,7.88793227]
[1736366906530,20.0,194.59,194.48,15.85878091]
[1736366906829,6.0241,194.63,194.47,23.74671318]
[1736366906830,20.0,194.6,194.47,23.74671318]
[1736366907031,20.0,194.59,194.47,15.85878091]
[1736366907247,20.0,194.59,194.48,15.85878091]
[1736366908035,20.0,194.59,194.47,18.65878091]
[1736366908217,6.3145,194.57,194.46,15.85878091]
[1736366908419,6.3145,194.57,194.44,2.8]
[1736366908729,6.3145,194.57,194.44,18.65878091]
[1736366908956,6.3145,194.57,194.45,20.0]
[1736366909617,6.3145,194.57,194.47,15.85878091]
[1736366909817,6.3145,194.57,194.49,15.85878091]
[1736366910124,6.3145,194.57,194.5,15.85878091]
[1736366910439,6.3145,194.57,194.48,15.85878091]
[1736366910748,6.3145,194.57,194.49,15.85878091]
[1736366910912,6.3145,194.57,194.5,15.85878091]
[1736366911326,6.3145,194.57,194.49,15.85878091]
[1736366911531,6.3145,194.57,194.5,15.85878091]
[1736366911914,6.3145,194.57,194.51,15.85878091]
[1736366912114,6.3145,194.57,194.52,2.78]
[1736366913410,6.3145,194.57,194.49,25.4124361]
[1736366913611,6.3145,194.57,194.5,28.1924361]
[1736366915137,6.3145,194.57,194.52,25.4124361]
[1736366915337,6.3145,194.57,194.53,25.4124361]
[1736366915843,6.3771,194.62,194.53,25.4124361]
[1736366916022,6.3771,194.62,194.54,25.4124361]
[1736366916335,6.3771,194.62,194.55,25.4124361]
[1736366916541,6.3771,194.62,194.53,25.4124361]
[1736366916843,6.3771,194.62,194.55,25.4124361]
[1736366917026,6.3771,194.62,194.54,25.4124361]
[1736366917952,6.3771,194.62,194.51,14.4872]
[1736366917953,6.3771,194.62,194.5,28.1924361]
[1736366918331,6.3771,194.62,194.5,28.1724361]
[1736366918537,6.3771,194.62,194.5,2.76]
[1736366918744,20.0,194.59,194.5,2.76]
[1736366919860,20.0,194.59,194.5,28.1724361]
[1736366920142,20.0,194.59,194.5,2.76]
[1736366920741,6.3771,194.62,194.52,49.1893201]
[1736366921946,6.3771,194.62,194.52,25.4124361]
[1736366922533,6.3771,194.62,194.52,23.776884]
[1736366923846,6.3771,194.62,194.52,25.4124361]
[1736366924429,87.1771,194.62,194.52,25.4124361]
[1736366925247,87.1771,194.62,194.51,12.8527]
[1736366925449,87.1771,194.62,194.51,38.2651361]
[1736366925632,87.1771,194.62,194.52,49.1893201]
[1736366925839,87.1771,194.62,194.51,38.2651361]
[1736366926045,87.1771,194.62,194.52,23.776884]
[1736366926741,87.1771,194.62,194.52,49.1893201]
[1736366927663,87.1771,194.62,194.53,25.4124361]
[1736366928158,87.1771,194.62,194.52,49.1893201]
[1736366928654,87.1771,194.62,194.5,2.76]
[1736366928655,87.1771,194.62,194.55,25.4124361]
[1736366928858,87.1771,194.62,194.54,23.776884]
[1736366929056,87.1771,194.62,194.54,49.1893201]
[1736366929442,87.1771,194.62,194.55,25.4124361]
[1736366929643,87.1771,194.62,194.54,49.1893201]
[1736366930156,87.1771,194.62,194.5,2.76]
[1736366930157,87.1771,194.62,194.52,25.4124361]
[1736366930362,87.1771,194.62,194.51,25.4124361]
[1736366930562,87.1771,194.62,194.52,23.776884]
[1736366930956,87.1771,194.62,194.51,23.776884]
[1736366931165,87.1771,194.62,194.51,49.1893201]
[1736366931351,87.1771,194.62,194.51,51.8893201]
[1736366931760,87.1771,194.62,194.51,2.7]
[1736366931942,20.0,194.59,194.48,2.7]
[1736366932363,20.0,194.59,194.48,23.776884]
[1736366935268,20.0,194.59,194.47,2.7]
[1736366935458,6.0518,194.57,194.45,15.88795086]
[1736366935661,6.0518,194.57,194.45,2.7]
[1736366936750,6.0518,194.57,194.46,15.88795086]
[1736366937067,6.0518,194.57,194.45,18.58795086]
[1736366937569,6.0518,194.57,194.45,15.88795086]
[1736366937875,6.0518,194.57,194.46,18.56795086]
[1736366938044,6.0518,194.57,194.46,2.68]
[1736366938248,80.8,194.56,194.41,2.07280983]
[1736366938450,80.8,194.56,194.43,15.88795086]
[1736366938650,80.8,194.56,194.44,23.776884]
[1736366938844,80.8,194.56,194.43,15.88795086]
[1736366939088,80.8,194.56,194.45,15.88795086]
[1736366939375,80.8,194.56,194.46,15.88795086]
[1736366939574,80.8,194.56,194.45,15.88795086]
[1736366940355,80.8,194.56,194.48,15.88795086]
[1736366940559,6.0518,194.57,194.49,15.88795086]
[1736366940756,6.0518,194.57,194.5,2.74]
[1736366941572,6.0518,194.57,194.5,18.62795086]
[1736366941778,6.0518,194.57,194.51,15.88795086]
[1736366943278,6.0518,194.57,194.5,18.62795086]
[1736366943453,6.0518,194.57,194.52,15.88795086]
[1736366943797,6.1958,194.62,194.54,15.88795086]
[1736366943975,6.1958,194.62,194.53,15.88795086]
[1736366944350,6.1958,194.62,194.54,15.88795086]
[1736366945288,6.1958,194.62,194.55,15.88795086]
[1736366945752,6.1958,194.62,194.54,15.88795086]
[1736366946387,6.1958,194.62,194.5,2.74]
[1736366946678,6.1958,194.62,194.5,18.62795086]
[1736366946854,6.1958,194.62,194.51,15.88795086]
[1736366947554,6.1958,194.62,194.53,15.88795086]
[1736366948162,6.1958,194.62,194.51,23.776884]
[1736366948363,20.0,194.59,194.5,2.74]
[1736366948655,20.0,194.59,194.51,15.88795086]
[1736366948973,20.0,194.59,194.53,15.88795086]
[1736366949479,20.0,194.59,194.52,15.88795086]
[1736366949654,20.0,194.59,194.51,39.66483486]
[1736366950263,20.0,194.59,194.51,23.776884]
[1736366950459,20.0,194.59,194.5,2.74]
[1736366950775,20.0,194.58,194.51,2.72]
[1736366951678,20.0,194.58,194.48,39.66483486]
[1736366951874,20.0,194.58,194.5,15.88795086]
[1736366952178,20.0,194.58,194.49,18.60795086]
[1736366952982,20.0,194.58,194.5,15.88795086]
[1736366953162,20.0,194.58,194.49,18.60795086]
[1736366953562,20.0,194.58,194.5,15.88795086]
[1736366954283,20.0,194.58,194.49,18.60795086]
[1736366954469,20.0,194.58,194.49,2.72]
[1736366955284,80.8,194.56,194.38,9.47353227]
[1736366955498,80.8,194.56,194.42,18.62795086]
[1736366955682,80.8,194.56,194.43,15.88795086]
[1736366956161,80.8,194.56,194.44,2.74]
[1736366956963,80.8,194.56,194.45,15.88795086]
[1736366957484,80.8,194.56,194.44,18.62795086]
[1736366958474,80.8,194.56,194.44,2.74]
[1736366958674,80.8,194.56,194.44,18.62795086]
[1736366960785,80.8,194.56,194.44,2.74]
[1736366961991,20.0,194.53,194.44,2.74]
[1736366962371,7.9368,194.52,194.38,3.62570217]
[1736366962567,7.9368,194.52,194.41,15.88795086]
[1736366962772,7.9368,194.52,194.42,15.88795086]
[1736366962971,7.9368,194.52,194.41,35.88795086]
[1736366963290,7.9368,194.52,194.42,15.88795086]
[1736366963488,7.9368,194.52,194.43,2.74]
[1736366963690,7.9368,194.52,194.35,84.59943158]
[1736366963691,80.8,194.51,194.35,84.59943158]
[1736366963986,7.9368,194.52,194.38,15.88795086]
[1736366963987,80.8,194.49,194.38,15.88795086]
[1736366964178,80.8,194.49,194.37,15.88795086]
[1736366964384,80.8,194.48,194.38,2.74]
[1736366964567,6.3542,194.47,194.37,2.74]
[1736366964763,1.5826,194.46,194.37,2.74]
[1736366964986,1.5826,194.46,194.36,22.74]
[1736366966904,23.776884,194.45,194.35,2.99943158]
[1736366967264,1.5826,194.46,194.35,2.99943158]
[1736366967566,20.0,194.42,194.35,2.99943158]
[1736366967972,20.0,194.41,194.35,2.99943158]
[1736366968596,7.8339,194.44,194.35,2.99943158]
[1736366971767,7.8339,194.44,194.38,15.88795086]
[1736366971971,7.8339,194.44,194.38,18.62795086]
[1736366972471,7.8339,194.44,194.38,2.74]
[1736366973897,7.8339,194.44,194.35,2.99943158]
[1736366975300,20.0,194.4,194.35,2.99943158]
[1736366980599,6.3265,194.39,194.35,2.99943158]
[1736366983602,43.776884,194.36,194.35,2.99943158]
[1736366984695,23.776884,194.35,194.21,28.76035086]
[1736366984897,20.0,194.32,194.22,2.8]
[1736366985280,26.1467,194.32,194.22,2.8]
[1736366985488,26.1467,194.32,194.22,18.68795086]
[1736366986019,26.1467,194.32,194.22,2.8]
[1736366986319,20.0,194.29,194.17,15.88795086]
[1736366986510,20.0,194.29,194.18,2.82]
[1736366988714,20.0,194.29,194.16,31.56365086]
[1736366988919,20.0,194.25,194.15,1.39692517]
[1736366990000,20.0,194.29,194.17,15.88795086]
[1736366990307,20.0,194.29,194.18,15.88795086]
[1736366990992,20.0,194.25,194.16,15.88795086]
[1736366992002,20.0,194.29,194.19,15.88795086]
[1736366992201,86.9467,194.32,194.24,15.88795086]
[1736366992407,1.5012,194.35,194.25,15.88795086]
[1736366992702,1.5012,194.35,194.24,15.88795086]
[1736366992892,20.0,194.34,194.24,15.88795086]
[1736366993291,20.0,194.34,194.26,15.88795086]
[1736366993689,1.5012,194.35,194.26,15.88795086]
[1736366994206,20.0,194.34,194.25,15.88795086]
[1736366994385,1.5012,194.35,194.25,15.88795086]
[1736366994796,6.5394,194.37,194.27,15.88795086]
[1736366995107,6.5394,194.37,194.26,39.66483486]
[1736366995691,20.0,194.34,194.26,39.66483486]
[1736366999904,20.0,194.34,194.27,15.88795086]
[1736367000096,20.0,194.34,194.28,15.88795086]
[1736367000303,6.5394,194.37,194.3,15.88795086]
[1736367000689,6.5394,194.37,194.28,39.66483486]
[1736367000995,20.0,194.34,194.24,28.75835086]
[1736367001196,20.0,194.34,194.23,1.5039]
[1736367001408,20.0,194.34,194.2,12.8727]
[1736367001608,20.0,194.34,194.2,31.54065086]
[1736367002710,80.8,194.32,194.2,31.54065086]
[1736367003013,20.0,194.25,194.16,15.88795086]
[1736367004319,20.0,194.25,194.15,20.06487603]
[1736367004894,20.0,194.25,194.17,15.88795086]
[1736367005102,6.5587,194.28,194.2,15.88795086]
[1736367005595,6.5587,194.28,194.15,4.17692517]
[1736367005596,6.5587,194.28,194.21,23.776884]
[1736367005803,1.5515,194.31,194.21,23.776884]
[1736367005804,1.5515,194.31,194.23,23.776884]
[1736367006098,1.5515,194.31,194.22,15.88795086]
[1736367006302,1.5515,194.31,194.23,23.776884]
[1736367007015,6.4728,194.33,194.24,15.88795086]
[1736367007200,6.4728,194.33,194.25,39.66483486]
[1736367007517,6.4728,194.33,194.26,15.88795086]
[1736367007715,1.6107,194.36,194.27,15.88795086]
[1736367007921,1.6107,194.36,194.28,15.88795086]
[1736367008421,1.6107,194.36,194.27,15.88795086]
[1736367008809,1.6107,194.36,194.28,15.88795086]
[1736367009406,1.6107,194.36,194.29,23.776884]
[1736367009606,1.6107,194.36,194.27,15.88795086]
[1736367010207,1.6107,194.36,194.26,23.776884]
[1736367010402,20.0,194.35,194.27,2.76]
[1736367012721,20.0,194.35,194.23,15.88795086]
[1736367012903,20.0,194.35,194.24,2.76]
[1736367013103,20.0,194.34,194.24,2.76]
[1736367013417,26.0543,194.33,194.24,2.76]
[1736367014896,26.0543,194.33,194.19,15.88795086]
[1736367015117,26.0543,194.33,194.2,2.76]
[1736367016500,26.0543,194.33,194.21,15.88795086]
[1736367016828,26.0543,194.33,194.21,23.776884]
[1736367017305,26.0543,194.33,194.21,39.66483486]
[1736367018222,26.0543,194.33,194.23,23.776884]
[1736367018428,26.0543,194.33,194.23,15.88795086]
[1736367018631,6.0543,194.33,194.25,15.88795086]
[1736367018849,6.0543,194.33,194.26,15.88795086]
[1736367019003,6.0543,194.33,194.25,15.88795086]
[1736367019342,6.0543,194.33,194.25,23.776884]
[1736367019499,6.0543,194.33,194.23,15.88795086]
[1736367021310,6.0543,194.33,194.24,23.776884]
[1736367021520,6.0543,194.33,194.24,15.88795086]
[1736367022527,6.0543,194.33,194.25,15.88795086]
[1736367022912,6.0543,194.33,194.23,39.66483486]
[1736367024407,6.0543,194.33,194.25,15.88795086]
[1736367024607,6.0543,194.33,194.24,15.88795086]
[1736367027231,6.0543,194.33,194.27,15.88795086]
[1736367027438,80.8,194.38,194.3,15.88795086]
[1736367027439,6.374,194.38,194.3,15.88795086]
[1736367027734,6.374,194.38,194.31,15.88795086]
[1736367028110,6.374,194.38,194.32,15.88795086]
[1736367028340,1.5667,194.4,194.34,15.88795086]
[1736367028631,6.374,194.43,194.34,15.88795086]
[1736367028815,6.374,194.43,194.28,15.6073]
[1736367029020,6.374,194.43,194.31,15.88795086]
[1736367029217,6.374,194.43,194.32,15.88795086]
[1736367029532,6.374,194.43,194.33,15.88795086]
[1736367032229,6.374,194.43,194.31,15.88795086]
[1736367032413,6.374,194.43,194.32,2.74]
[1736367032827,20.0,194.4,194.32,2.74]
[1736367033135,20.0,194.4,194.28,12.8677]
[1736367033136,20.0,194.4,194.3,2.76]
[1736367033728,20.0,194.4,194.3,18.64795086]
[1736367033922,20.0,194.4,194.31,39.66483486]
[1736367034529,6.374,194.43,194.32,15.88795086]
[1736367034830,6.374,194.43,194.34,15.88795086]
[1736367035936,6.374,194.43,194.35,15.88795086]
[1736367036140,6.374,194.43,194.36,39.66483486]
[1736367036347,1.5667,194.45,194.39,15.88795086]
[1736367036639,1.5667,194.45,194.39,18.64795086]
[1736367036945,1.5667,194.45,194.39,2.76]
[1736367038433,6.0927,194.48,194.39,18.64795086]
[1736367038633,6.0927,194.48,194.4,39.66483486]
[1736367038958,6.0927,194.48,194.41,15.88795086]
[1736367039724,6.0927,194.48,194.4,23.776884]
[1736367039725,6.0927,194.48,194.4,39.66483486]
[1736367039926,6.0927,194.48,194.39,2.76]
[1736367041750,6.0927,194.48,194.35,23.776884]
[1736367041950,6.0927,194.48,194.36,18.62795086]
[1736367042243,20.0,194.45,194.36,2.74]
[1736367042433,1.6073,194.44,194.36,2.74]
[1736367042629,1.6073,194.44,194.31,15.88795086]
[1736367042844,6.5425,194.43,194.32,2.74]
[1736367043044,20.0,194.4,194.32,2.74]
[1736367049028,20.0,194.4,194.27,12.8684]
[1736367049332,20.0,194.4,194.28,2.7]
[1736367049535,20.0,194.4,194.29,23.776884]
[1736367050033,20.0,194.4,194.31,15.88795086]
[1736367050247,20.0,194.4,194.31,23.776884]
[1736367051049,20.0,194.4,194.33,15.88795086]
[1736367051257,20.0,194.4,194.33,23.776884]
[1736367053953,20.0,194.4,194.31,15.88795086]
[1736367054550,20.0,194.4,194.33,23.776884]
[1736367055134,20.0,194.4,194.31,23.776884]
[1736367055457,20.0,194.4,194.32,2.7]
[1736367057552,80.8,194.37,194.23,1.5465]
[1736367057765,80.8,194.37,194.26,2.68]
[1736367058133,80.8,194.37,194.27,23.776884]
[1736367059453,80.8,194.37,194.26,18.56795086]
[1736367059960,80.8,194.37,194.27,23.776884]
[1736367060336,80.8,194.37,194.24,2.68]
[1736367060568,100.8,194.33,194.21,15.88795086]
[1736367060739,8.1758,194.32,194.21,18.56795086]
[1736367060939,80.8,194.31,194.2,15.88795086]
[1736367061140,80.8,194.31,194.19,2.68]
[1736367061373,80.8,194.31,194.19,26.456884]
[1736367061868,80.8,194.31,194.21,23.776884]
[1736367062369,80.8,194.3,194.15,3.44897742]
[1736367062573,80.8,194.3,194.19,15.88795086]
[1736367062742,80.8,194.3,194.2,15.88795086]
[1736367063063,8.1758,194.32,194.25,39.66483486]
[1736367063239,8.1758,194.32,194.25,15.88795086]
[1736367063551,6.5937,194.32,194.26,23.776884]
[1736367063744,6.0852,194.36,194.29,23.776884]
[1736367064250,6.0852,194.36,194.28,23.776884]
[1736367064861,6.0852,194.36,194.27,23.776884]
[1736367065360,6.0852,194.36,194.27,15.88795086]
[1736367065562,6.0852,194.36,194.27,23.776884]
[1736367065939,6.0852,194.36,194.25,39.66483486]
[1736367066148,6.0852,194.36,194.24,2.68]
[1736367066149,6.0852,194.36,194.27,23.776884]
[1736367068257,6.0852,194.36,194.26,15.88795086]
[1736367068458,6.0852,194.36,194.2,12.8731]
[1736367068459,20.0,194.33,194.2,12.8731]
[1736367068666,81.3,194.34,194.21,2.66]
[1736367069957,81.3,194.34,194.22,23.776884]